[Event "26th Zadar Open 2019"]
[Site "Zadar"]
[Date "2019.12.16"]
[Round "3.6"]
[White "Hnydiuk, Aleksander"]
[Black "Bratovic, Blaz"]
[Result "1/2-1/2"]
[ECO "A10"]
[WhiteElo "2423"]
[BlackElo "2359"]
[Annotator "NA"]
[PlyCount "86"]
[EventDate "2019.12.15"]
[EventType "swiss"]
[EventCountry "CRO"]
[SourceTitle "playchess.com"]
[Source "ChessBase"]
[SourceQuality "1"]
[TimeControl "40/5400+30:1800+30"]

1. Nf3 {[%emt 0:05:30]} e6 {[%emt 0:01:30]} 2. c4 {[%emt 0:00:00]} f5 {[%emt 0:01:30]} 3. g3 {[%emt 0:00:00]} Nf6 {[%emt 0:00:00]} 4. Bg2 {[%emt 0:00:00]} d5 {[%emt 0:00:00]} 5. O-O {[%emt 0:00:00]} Bd6 {[%emt 0:00:00]} 6. Nc3 {[%emt 0:01:30]} O-O {[%emt 0:01:00]} 7. d3 {[%emt 0:00:30]} dxc4 {[%emt 0:08:30]} 8. dxc4 {[%emt 0:00:30]} Nc6 {[%emt 0:00:00]} 9. Nb5 {[%emt 0:14:30]} e5 {[%emt 0:01:00]} 10. Nxd6 {[%emt 0:01:30]} cxd6 {[%emt 0:00:30]} 11. b3 {[%emt 0:00:30]} Qe7 {[%emt 0:00:00]} 12. Ba3 {[%emt 0:02:30]} Rd8 {[%emt 0:00:00]} 13. Qd2 {[%emt 0:03:30]} Ne4 {[%emt 0:03:30]} 14. Qe3 {[%emt 0:02:30]} a5 {[%emt 0:07:30]} 15. Nd2 {[%emt 0:05:30]} Nc5 {[%emt 0:00:30]} 16. f4 {[%emt 0:16:30]} Nb4 {[%emt 0:11:30]} 17. Qc3 {[%emt 0:07:30]} Re8 {[%emt 0:04:30]} 18. Bb2 {[%emt 0:06:30]} exf4 {[%emt 0:01:30]} 19. gxf4 {[%emt 0:01:30]} Qe3+ {[%emt 0:02:30]} 20. Qxe3 {[%emt 0:00:00]} Rxe3 {[%emt 0:00:00]} 21. a3 {[%emt 0:12:11]} Nc6 {[%emt 0:03:00]} 22. Bd5+ {[%emt 0:05:33]} Kf8 {[%emt 0:01:30]} 23. Kf2 {[%emt 0:00:47]} Re7 {[%emt 0:00:30]} 24. b4 {[%emt 0:09:28]} axb4 {[%emt 0:01:30]} 25. Bxc6 {[%emt 0:00:30]} bxc6 {[%emt 0:00:30]} 26. axb4 {[%emt 0:00:06]} Rxa1 {[%emt 0:01:30]} 27. Rxa1 {[%emt 0:00:05]} Ne4+ {[%emt 0:08:30]} 28. Nxe4 {[%emt 0:00:02]} Rxe4 {[%emt 0:00:30]} 29. Ra8 {[%emt 0:00:20]} Re8 {[%emt 0:00:30]} 30. Ra7 {[%emt 0:01:28]} Re7 {[%emt 0:01:30]} 31. Ra8 {[%emt 0:00:23]} Re8 {[%emt 0:00:30]} 32. Ra7 {[%emt 0:02:34]} Re7 {[%emt 0:00:30]} 33. Rxe7 {[%emt 0:00:16]} Kxe7 {[%emt 0:00:00]} 34. Bxg7 {[%emt 0:00:05]} Ba6 {[%emt 0:00:00]} 35. c5 {[%emt 0:00:08]} dxc5 {[%emt 0:00:00]} 36. bxc5 {[%emt 0:00:02]} Bc4 {[%emt 0:00:00]} 37. Kf3 {[%emt 0:00:27]} Bd5+ {[%emt 0:00:30]} 38. Kg3 {[%emt 0:00:03]} Kf7 {[%emt 0:00:00]} 39. Bd4 {[%emt 0:00:16]} Kg6 {[%emt 0:00:00]} 40. Be5 {[%emt 0:00:18]} Be4 {[%emt 0:00:30]} 41. Bd4 {[%emt 0:30:10]} Bd5 {[%emt 0:29:30]} 42. Be5 {[%emt 0:00:05]} Be4 {[%emt 0:00:30]} 43. Bd4 {[%emt 0:00:00]} Bd5 {[%emt 0:01:30]} 1/2-1/2

[Event "26th Zadar Open 2019"]
[Site "Zadar"]
[Date "2019.12.16"]
[Round "3.7"]
[White "Bhambure, Shantanu"]
[Black "Rezan, Sasa"]
[Result "1/2-1/2"]
[ECO "D30"]
[WhiteElo "2340"]
[BlackElo "2415"]
[Annotator "NA"]
[PlyCount "52"]
[EventDate "2019.12.15"]
[EventType "swiss"]
[EventCountry "CRO"]
[SourceTitle "playchess.com"]
[Source "ChessBase"]
[SourceQuality "1"]
[TimeControl "40/5400+30:1800+30"]

1. d4 {[%emt 0:00:30]} Nf6 {[%emt 0:00:30]} 2. c4 {[%emt 0:00:00]} e6 {[%emt 0:00:00]} 3. Nf3 {[%emt 0:00:00]} d5 {[%emt 0:00:00]} 4. Bg5 {[%emt 0:00:00]} Bb4+ {[%emt 0:01:30]} 5. Nbd2 {[%emt 0:01:00]} dxc4 {[%emt 0:00:30]} 6. e3 {[%emt 0:00:00]} b5 {[%emt 0:03:30]} 7. Be2 {[%emt 0:01:00]} Bb7 {[%emt 0:03:30]} 8. O-O {[%emt 0:00:30]} Be7 {[%emt 0:12:30]} 9. Qc2 {[%emt 0:16:30]} Nbd7 {[%emt 0:13:30]} 10. a4 {[%emt 0:07:30]} a6 {[%emt 0:02:30]} 11. b3 {[%emt 0:10:30]} c5 {[%emt 0:02:30]} 12. axb5 {[%emt 0:03:30]} axb5 {[%emt 0:01:30]} 13. bxc4 {[%emt 0:00:30]} b4 {[%emt 0:03:30]} 14. Nb3 {[%emt 0:01:30]} O-O {[%emt 0:04:30]} 15. Rxa8 {[%emt 0:04:30]} Bxa8 {[%emt 0:01:30]} 16. Ra1 {[%emt 0:02:30]} Be4 {[%emt 0:21:30]} 17. Qb2 {[%emt 0:09:30]} Qc7 {[%emt 0:00:30]} 18. Bf4 {[%emt 0:02:30]} Qb6 {[%emt 0:05:30]} 19. Ne5 {[%emt 0:09:30]} Rc8 {[%emt 0:02:11]} 20. Ra5 {[%emt 0:05:30]} Bf8 {[%emt 0:02:38]} 21. Qa2 {[%emt 0:03:49]} Nxe5 {[%emt 0:01:56]} 22. Bxe5 {[%emt 0:00:20]} Nd7 {[%emt 0:00:24]} 23. Bg3 {[%emt 0:06:12]} Qd8 {[%emt 0:05:09]} 24. f3 {[%emt 0:03:05]} Bb7 {[%emt 0:00:26]} 25. Ra7 {[%emt 0:01:18]} Ra8 {[%emt 0:00:51]} 26. Rxa8 {[%emt 0:05:02]} Qxa8 {[%emt 0:00:09]} 1/2-1/2

[Event "26th Zadar Open 2019"]
[Site "Zadar"]
[Date "2019.12.16"]
[Round "3.8"]
[White "Nguyen, Piotr"]
[Black "Dimitrov, Vladimir"]
[Result "1-0"]
[ECO "A30"]
[WhiteElo "2413"]
[BlackElo "2285"]
[Annotator "NA"]
[PlyCount "97"]
[EventDate "2019.12.15"]
[EventType "swiss"]
[EventCountry "CRO"]
[SourceTitle "playchess.com"]
[Source "ChessBase"]
[SourceQuality "1"]
[TimeControl "40/5400+30:1800+30"]

1. Nf3 {[%emt 0:00:30] 6} c5 {[%emt 0:00:30] 6} 2. c4 {[%emt 0:00:00] 6} Nc6 {[%emt 0:00:00]} 3. b3 {[%emt 0:00:00]} e5 {[%emt 0:02:00]} 4. Nc3 {[%emt 0:01:30]} g6 {[%emt 0:00:30]} 5. Bb2 {[%emt 0:00:30]} Bg7 {[%emt 0:00:30]} 6. g3 {[%emt 0:01:30]} Nge7 {[%emt 0:00:30]} 7. Bg2 {[%emt 0:00:30]} O-O {[%emt 0:00:30]} 8. O-O {[%emt 0:00:00]} d6 {[%emt 0:00:30]} 9. d3 {[%emt 0:00:00]} a6 {[%emt 0:02:30]} 10. e3 {[%emt 0:12:30]} Rb8 {[%emt 0:00:00]} 11. Qe2 {[%emt 0:00:30]} h6 {[%emt 0:03:00]} 12. Nd2 {[%emt 0:00:30]} f5 {[%emt 0:03:30]} 13. f4 {[%emt 0:02:30]} exf4 {[%emt 0:03:30]} 14. gxf4 {[%emt 0:00:30]} Be6 {[%emt 0:00:30]} 15. Rab1 {[%emt 0:15:30]} Qd7 {[%emt 0:04:30]} 16. a3 {[%emt 0:06:30]} d5 {[%emt 0:01:30]} 17. cxd5 {[%emt 0:07:30]} Nxd5 {[%emt 0:00:30]} 18. Nxd5 {[%emt 0:01:30]} Bxd5 {[%emt 0:00:30]} 19. b4 {[%emt 0:15:30]} Bxg2 {[%emt 0:03:30]} 20. Kxg2 {[%emt 0:14:15]} Bxb2 {[%emt 0:03:30] ]} 21. Rxb2 {[%emt 0:00:03]} cxb4 {[%emt 0:03:30] 2} 22. axb4 {[%emt 0:00:05]} Rfe8 {[%emt 0:00:00] 0} 23. Nf3 {[%emt 0:02:05]} Re6 {[%emt 0:02:00] ]} 24. d4 {[%emt 0:01:10]} Ne7 {[%emt 0:08:30] 2} 25. b5 {[%emt 0:03:39]} axb5 {[%emt 0:02:30] 3} 26. Ne5 {[%emt 0:03:10]} Qd5+ {[%emt 0:00:30] 3} 27. Kf2 {[%emt 0:00:25]} Ra8 {[%emt 0:02:30] 8} 28. Rfb1 {[%emt 0:01:08]} b4 {[%emt 0:02:30] ]} 29. Rxb4 {[%emt 0:01:41]} Ra2 {[%emt 0:00:30] 9} 30. R1b2 {[%emt 0:02:58]} Rxb2 {[%emt 0:01:30] 5} 31. Qxb2 {[%emt 0:01:28]} g5 {[%emt 0:01:30] 3} 32. Qb3 {[%emt 0:04:13]} gxf4 {[%emt 0:03:30] 0} 33. exf4 {[%emt 0:00:56]} Ra6 {[%emt 0:00:30] 4} 34. Rxb7 {[%emt 0:01:32]} Ra2+ {[%emt 0:00:30] 2} 35. Kg3 {[%emt 0:00:14]} Rg2+ {[%emt 0:02:30] 5} 36. Kh3 {[%emt 0:00:04]} Qxb3+ {[%emt 0:01:30] ]} 37. Rxb3 {[%emt 0:00:05]} Rd2 {[%emt 0:00:30] 9} 38. Rd3 {[%emt 0:01:17]} Rxd3+ {[%emt 0:00:30] 0} 39. Nxd3 {[%emt 0:00:04]} Kf7 {[%emt 0:00:30] ]} 40. Nb4 {[%emt 0:00:56]} Ke6 {[%emt 0:00:30] 2} 41. Kh4 {[%emt 0:30:43]} Ng6+ {[%emt 0:00:30] 9} 42. Kg3 {[%emt 0:00:00] 9} Kd6 {[%emt 0:01:30] 9} 43. Kf3 {[%emt 0:01:35]} Nh4+ {[%emt 0:15:30]} 44. Kf2 {[%emt 0:00:00]} Ng6 {[%emt 0:01:30]} 45. Ke3 {[%emt 0:00:00]} Nf8 {[%emt 0:00:30]} 46. Nc2 {[%emt 0:00:00]} Ne6 {[%emt 0:00:30]} 47. Kf3 {[%emt 0:00:00]} Kc6 {[%emt 0:00:30]} 48. d5+ {[%emt 0:00:00]} Kxd5 {[%emt 0:00:30]} 49. Ne3+ {[%emt 0:00:00]} 1-0

[Event "26th Zadar Open 2019"]
[Site "Zadar"]
[Date "2019.12.16"]
[Round "3.9"]
[White "Saric, Ante"]
[Black "Mitev, Valentin"]
[Result "1-0"]
[ECO "D30"]
[WhiteElo "2556"]
[BlackElo "2233"]
[Annotator "ChessBase"]
[PlyCount "63"]
[EventDate "2019.12.15"]
[EventType "swiss"]
[EventCountry "CRO"]
[SourceTitle "playchess.com"]
[Source "ChessBase"]
[SourceQuality "1"]
[TimeControl "40/5400+30:1800+30"]

1. c4 {[%emt 0:00:30]} e6 {[%emt 0:00:30]} 2. g3 {[%emt 0:00:30]} d5 {[%emt 0:00:00]} 3. Bg2 {[%emt 0:00:00]} Nf6 {[%emt 0:00:00]} 4. d4 {[%emt 0:02:00]} Be7 {[%emt 0:00:30]} 5. Nf3 {[%emt 0:00:30]} O-O {[%emt 0:00:30]} 6. O-O {[%emt 0:01:30]} c5 {[%emt 0:00:30]} 7. cxd5 {[%emt 0:00:30]} exd5 {[%emt 0:00:30]} 8. dxc5 {[%emt 0:00:30]} Bxc5 {[%emt 0:03:30]} 9. Qc2 {[%emt 0:00:30]} Be7 {[%emt 0:01:30]} 10. Nc3 {[%emt 0:00:30]} Nc6 {[%emt 0:01:30]} 11. Rd1 {[%emt 0:00:00]} Be6 {[%emt 0:08:30]} 12. Be3 {[%emt 0:05:00]} Rc8 {[%emt 0:01:30]} 13. Rac1 {[%emt 0:06:30]} Qd7 {[%emt 0:01:30]} 14. Qa4 {[%emt 0:19:30]} Rfd8 {[%emt 0:05:30]} 15. Nd4 {[%emt 0:01:30]} Ne5 {[%emt 0:09:30]} 16. Qxd7 {[%emt 0:02:30]} Nexd7 {[%emt 0:00:30]} 17. Nxe6 {[%emt 0:05:30]} fxe6 {[%emt 0:00:00]} 18. Bh3 {[%emt 0:04:30]} Kf7 {[%emt 0:02:00]} 19. Bxa7 {[%emt 0:02:30]} b6 {[%emt 0:03:30]} 20. Nb5 {[%emt 0:01:30]} Ne4 {[%emt 0:22:30]} 21. Nd4 {[%emt 0:05:30]} Ng5 {[%emt 0:01:30]} 22. Bg2 {[%emt 0:00:30]} Bc5 {[%emt 0:07:30]} 23. h4 {[%emt 0:05:30]} Ne4 {[%emt 0:00:00]} 24. Bxe4 {[%emt 0:03:30]} dxe4 {[%emt 0:01:00]} 25. Nb5 {[%emt 0:01:30]} Nf6 {[%emt 0:17:31]} 26. e3 {[%emt 0:16:56]} Nd5 {[%emt 0:01:17]} 27. Rc4 {[%emt 0:01:00]} Ke7 {[%emt 0:10:39]} 28. a3 {[%emt 0:04:49]} Nc7 {[%emt 0:00:00]} 29. Rxd8 {[%emt 0:00:17]} Kxd8 {[%emt 0:00:00]} 30. Nxc7 {[%emt 0:01:49]} Rxc7 {[%emt 0:00:59]} 31. Rxc5 {[%emt 0:01:25]} Rxa7 {[%emt 0:00:12]} 32. Rc6 {[%emt 0:00:00]} 1-0

[Event "26th Zadar Open 2019"]
[Site "Zadar"]
[Date "2019.12.16"]
[Round "3.11"]
[White "Livaic, Leon"]
[Black "Dixit, Nikhil"]
[Result "1/2-1/2"]
[ECO "C00"]
[WhiteElo "2505"]
[BlackElo "2318"]
[Annotator "ChessBase"]
[PlyCount "98"]
[EventDate "2019.12.15"]
[EventType "swiss"]
[EventCountry "CRO"]
[SourceTitle "playchess.com"]
[Source "ChessBase"]
[SourceQuality "1"]
[TimeControl "40/5400+30:1800+30"]

1. e4 {[%emt 0:00:30] 3} e6 {[%emt 0:03:30] 3} 2. b3 {[%emt 0:02:30] 3} d5 {[%emt 0:00:00]} 3. Bb2 {[%emt 0:00:30]} Nf6 {[%emt 0:00:00]} 4. e5 {[%emt 0:00:00]} Nfd7 {[%emt 0:00:30]} 5. Qg4 {[%emt 0:00:00]} c5 {[%emt 0:01:30]} 6. f4 {[%emt 0:00:30]} Nc6 {[%emt 0:00:30]} 7. Nf3 {[%emt 0:00:30]} g6 {[%emt 0:07:30]} 8. Be2 {[%emt 0:04:30]} h5 {[%emt 0:07:30]} 9. Qh3 {[%emt 0:01:30]} Bh6 {[%emt 0:02:30]} 10. g3 {[%emt 0:02:30]} Qe7 {[%emt 0:03:30]} 11. O-O {[%emt 0:03:30]} b6 {[%emt 0:03:30]} 12. Nc3 {[%emt 0:01:30]} a6 {[%emt 0:00:30]} 13. Rae1 {[%emt 0:01:30]} Nf8 {[%emt 0:03:30]} 14. Qg2 {[%emt 0:05:30]} Bb7 {[%emt 0:02:30]} 15. Qf2 {[%emt 0:00:30]} O-O-O {[%emt 0:12:30]} 16. Na4 {[%emt 0:13:30]} Qc7 {[%emt 0:01:30]} 17. d4 {[%emt 0:00:30]} cxd4 {[%emt 0:04:30]} 18. Ba3 {[%emt 0:27:30]} b5 {[%emt 0:04:30]} 19. Nc5 {[%emt 0:00:30]} Nd7 {[%emt 0:01:30]} 20. Nxb7 {[%emt 0:00:30]} Kxb7 {[%emt 0:00:00]} 21. Nxd4 {[%emt 0:01:30]} Nxd4 {[%emt 0:04:00]} 22. Qxd4 {[%emt 0:00:00]} Bf8 {[%emt 0:06:30]} 23. Bxf8 {[%emt 0:01:00]} Rhxf8 {[%emt 0:00:30]} 24. c4 {[%emt 0:01:30]} dxc4 {[%emt 0:12:11]} 25. bxc4 {[%emt 0:04:30] 9} Nc5 {[%emt 0:01:04]} 26. Qe3 {[%emt 0:02:30] 5} b4 {[%emt 0:01:21]} 27. Rb1 {[%emt 0:00:30] ]} Qb6 {[%emt 0:00:42]} 28. a3 {[%emt 0:02:30] 2} b3 {[%emt 0:01:08]} 29. Rfc1 {[%emt 0:02:30] 0} a5 {[%emt 0:01:35]} 30. a4 {[%emt 0:00:00] ]} Kc7 {[%emt 0:04:21]} 31. Rc3 {[%emt 0:01:00] 8} Rd7 {[%emt 0:00:39]} 32. Kg2 {[%emt 0:06:01]} Rfd8 {[%emt 0:00:56]} 33. Rbxb3 Nxb3 34. c5 Qc6+ 35. Bf3 Qxa4 36. Rxb3 Rd2+ 37. Kh3 Qa2 38. Kh4 Rxh2+ 39. Kg5 Rb2 40. Ra3 Qb1 41. Be4 Qd1 42. Rxa5 Rdb8 43. Ra7+ R2b7 44. Rxb7+ Rxb7 45. Bxb7 Qd8+ 46. Kh6 Qh8+ 47. Kg5 Qd8+ 48. Kh6 Qh8+ 49. Kg5 Qd8+ 1/2-1/2

[Event "26th Zadar Open 2019"]
[Site "Zadar"]
[Date "2019.12.16"]
[Round "3.12"]
[White "Krasteva, Beloslava"]
[Black "Doric, Darko"]
[Result "1/2-1/2"]
[ECO "E48"]
[WhiteElo "2264"]
[BlackElo "2492"]
[Annotator "ChessBase"]
[PlyCount "110"]
[EventDate "2019.12.15"]
[EventType "swiss"]
[EventCountry "CRO"]
[SourceTitle "playchess.com"]
[Source "ChessBase"]
[SourceQuality "1"]
[TimeControl "40/5400+30:1800+30"]

1. d4 {[%emt 0:00:30] 3} Nf6 {[%emt 0:00:30] 3} 2. c4 {[%emt 0:00:30] 3} e6 {[%emt 0:00:30]} 3. Nc3 {[%emt 0:00:30]} Bb4 {[%emt 0:00:30]} 4. e3 {[%emt 0:00:00]} O-O {[%emt 0:00:30]} 5. Bd3 {[%emt 0:00:00]} d5 {[%emt 0:00:30]} 6. cxd5 {[%emt 0:00:30]} exd5 {[%emt 0:00:00]} 7. Nge2 {[%emt 0:00:30]} Re8 {[%emt 0:00:00]} 8. Bd2 {[%emt 0:00:30]} Bd6 {[%emt 0:00:30]} 9. Rc1 {[%emt 0:00:30]} a6 {[%emt 0:00:30]} 10. O-O {[%emt 0:00:30]} Nbd7 {[%emt 0:00:00]} 11. Nf4 {[%emt 0:01:30]} c6 {[%emt 0:00:00]} 12. Qc2 {[%emt 0:01:30]} Nf8 {[%emt 0:00:30]} 13. f3 {[%emt 0:00:30]} Ng6 {[%emt 0:01:30]} 14. Nce2 {[%emt 0:03:30]} Bd7 {[%emt 0:09:30]} 15. g3 {[%emt 0:04:30]} Rc8 {[%emt 0:09:30]} 16. b4 {[%emt 0:04:30]} b5 {[%emt 0:10:30]} 17. Nxg6 {[%emt 0:10:30]} hxg6 {[%emt 0:00:00]} 18. e4 {[%emt 0:00:30]} Bh3 {[%emt 0:09:00]} 19. e5 {[%emt 0:05:30]} Bxf1 {[%emt 0:01:30]} 20. Kxf1 {[%emt 0:02:30]} Bf8 {[%emt 0:01:30]} 21. exf6 {[%emt 0:01:30]} Qxf6 {[%emt 0:00:00]} 22. Kg2 {[%emt 0:00:30]} Bd6 {[%emt 0:01:00]} 23. h4 {[%emt 0:05:30]} Qe7 {[%emt 0:05:30]} 24. a3 {[%emt 0:02:30]} a5 {[%emt 0:00:30]} 25. bxa5 {[%emt 0:08:30]} Bxa3 {[%emt 0:00:30]} 26. Re1 {[%emt 0:03:30]} Qa7 {[%emt 0:01:30]} 27. h5 {[%emt 0:06:30]} gxh5 {[%emt 0:00:30]} 28. Bf4 {[%emt 0:05:30]} Qxa5 {[%emt 0:04:30]} 29. Rh1 {[%emt 0:01:30]} Qa4 {[%emt 0:00:30]} 30. Bh7+ {[%emt 0:02:30]} Kf8 {[%emt 0:00:00]} 31. Qd3 {[%emt 0:01:30]} Rxe2+ {[%emt 0:07:00]} 32. Qxe2 {[%emt 0:00:30]} Qxd4 {[%emt 0:01:30]} 33. Rxh5 {[%emt 0:05:30]} Re8 {[%emt 0:01:30]} 34. Re5 {[%emt 0:00:30]} Rxe5 {[%emt 0:01:30]} 35. Bxe5 {[%emt 0:00:30]} Qc4 {[%emt 0:00:30]} 36. Qxc4 {[%emt 0:05:18]} bxc4 {[%emt 0:00:30] 2} 37. Bb1 {[%emt 0:02:24]} f6 {[%emt 0:00:00] ]} 38. Bc3 {[%emt 0:00:37]} Ke7 {[%emt 0:00:00] 1} 39. Kf2 {[%emt 0:00:47]} Kd6 {[%emt 0:02:30] 5} 40. Ke2 {[%emt 0:00:53]} c5 {[%emt 0:00:30] 1} 41. Bd2 {[%emt 0:32:27]} Bb2 {[%emt 0:30:30] 4} 42. g4 {[%emt 0:03:38]} Kc6 {[%emt 0:01:30] ]} 43. Bf5 {[%emt 0:02:37]} Bd4 {[%emt 0:00:30] 9} 44. Kd1 {[%emt 0:07:46]} Kd6 {[%emt 0:09:30]} 45. Kc2 {[%emt 0:00:00]} Be5 {[%emt 0:01:30]} 46. Kd1 {[%emt 0:00:00]} c3 {[%emt 0:00:00]} 47. Be1 {[%emt 0:00:00]} d4 {[%emt 0:00:00]} 48. Kc2 {[%emt 0:00:05]} c4 {[%emt 0:00:30]} 49. Bxc3 {[%emt 0:01:03]} dxc3 {[%emt 0:00:30]} 50. Be4 {[%emt 0:00:16]} Kc5 {[%emt 0:00:30]} 51. Bb7 {[%emt 0:00:21]} Kd4 {[%emt 0:00:30]} 52. Bc6 {[%emt 0:00:13]} Kc5 {[%emt 0:00:30]} 53. Bb7 {[%emt 0:00:17]} Kd4 {[%emt 0:00:30]} 54. Bc6 {[%emt 0:00:08]} Kc5 {[%emt 0:00:00]} 55. Bb7 {[%emt 0:00:09]} Kd4 {[%emt 0:00:00]} 1/2-1/2

[Event "26th Zadar Open 2019"]
[Site "Zadar"]
[Date "2019.12.16"]
[Round "3.13"]
[White "Pecnik, Leo"]
[Black "Galperin, Platon"]
[Result "1-0"]
[ECO "B08"]
[WhiteElo "2326"]
[BlackElo "2462"]
[Annotator "ChessBase"]
[PlyCount "73"]
[EventDate "2019.12.15"]
[EventType "swiss"]
[EventCountry "CRO"]
[SourceTitle "playchess.com"]
[Source "ChessBase"]
[SourceQuality "1"]
[TimeControl "40/5400+30:1800+30"]

1. e4 {[%emt 0:00:30]} g6 {[%emt 0:10:30]} 2. d4 {[%emt 0:01:30]} d6 {[%emt 0:00:30]} 3. Nc3 {[%emt 0:00:30]} Bg7 {[%emt 0:00:00]} 4. Nf3 {[%emt 0:05:30]} Nf6 {[%emt 0:00:00]} 5. Be2 {[%emt 0:00:00]} O-O {[%emt 0:00:00]} 6. O-O {[%emt 0:00:00]} a6 {[%emt 0:00:00]} 7. Re1 {[%emt 0:09:30]} b5 {[%emt 0:00:30]} 8. e5 {[%emt 0:01:30]} Ne8 {[%emt 0:03:30]} 9. a4 {[%emt 0:11:30]} b4 {[%emt 0:00:30]} 10. Nd5 {[%emt 0:00:30]} a5 {[%emt 0:02:30]} 11. Bg5 {[%emt 0:03:30]} f6 {[%emt 0:00:30]} 12. Nxe7+ {[%emt 0:02:30]} Kh8 {[%emt 0:00:30]} 13. exf6 {[%emt 0:01:30]} Nxf6 {[%emt 0:01:30]} 14. Bd3 {[%emt 0:06:30]} Bb7 {[%emt 0:01:30]} 15. Bxg6 {[%emt 0:06:30]} Nc6 {[%emt 0:04:30]} 16. Nxc6 {[%emt 0:03:30]} Bxc6 {[%emt 0:00:30]} 17. Be4 {[%emt 0:00:30]} Bxe4 {[%emt 0:00:30]} 18. Rxe4 {[%emt 0:02:30]} Qd7 {[%emt 0:00:00]} 19. Bxf6 {[%emt 0:08:30]} Bxf6 {[%emt 0:00:00]} 20. Qd3 {[%emt 0:03:30]} Rg8 {[%emt 0:00:30]} 21. g3 {[%emt 0:02:30]} Raf8 {[%emt 0:01:30]} 22. Rf4 {[%emt 0:09:46]} Qe8 {[%emt 0:04:30]} 23. Re1 {[%emt 0:04:28]} Qxa4 {[%emt 0:00:30]} 24. Re6 {[%emt 0:01:16]} Bd8 {[%emt 0:00:30]} 25. Rxf8 {[%emt 0:02:57]} Rxf8 {[%emt 0:00:30]} 26. b3 {[%emt 0:01:30]} Qd7 {[%emt 0:00:00]} 27. d5 {[%emt 0:00:31]} Bf6 {[%emt 0:03:00]} 28. Kg2 {[%emt 0:01:10]} a4 {[%emt 0:03:30]} 29. bxa4 {[%emt 0:00:48]} Qxa4 {[%emt 0:00:00]} 30. Qf5 {[%emt 0:00:57]} Bg7 {[%emt 0:01:00]} 31. Qe4 {[%emt 0:00:09]} Bf6 {[%emt 0:00:30]} 32. c3 {[%emt 0:04:11]} Qa2 {[%emt 0:03:30]} 33. cxb4 {[%emt 0:00:28]} Qb3 {[%emt 0:00:30]} 34. Re8 {[%emt 0:01:34]} Rxe8 {[%emt 0:00:00]} 35. Qxe8+ {[%emt 0:00:02]} Kg7 {[%emt 0:00:00]} 36. Qd7+ {[%emt 0:00:30]} Kg6 {[%emt 0:00:30]} 37. Qg4+ {[%emt 0:00:48]} 1-0

[Event "26th Zadar Open 2019"]
[Site "Zadar"]
[Date "2019.12.16"]
[Round "3.14"]
[White "Blohberger, Felix"]
[Black "Gelbenegger, Patrick"]
[Result "1-0"]
[ECO "A31"]
[WhiteElo "2434"]
[BlackElo "2267"]
[Annotator "NA"]
[PlyCount "111"]
[EventDate "2019.12.15"]
[EventType "swiss"]
[EventCountry "CRO"]
[SourceTitle "playchess.com"]
[Source "ChessBase"]
[SourceQuality "1"]
[TimeControl "40/5400+30:1800+30"]

1. c4 {[%emt 0:01:30]} c5 {[%emt 0:03:30]} 2. Nf3 {[%emt 0:01:30]} Nc6 {[%emt 0:00:30]} 3. d4 {[%emt 0:00:30]} cxd4 {[%emt 0:04:30]} 4. Nxd4 {[%emt 0:00:00]} d6 {[%emt 0:00:00]} 5. Nc3 {[%emt 0:01:00]} Nf6 {[%emt 0:02:00]} 6. e4 {[%emt 0:00:00]} e5 {[%emt 0:01:30]} 7. Nc2 {[%emt 0:01:00]} Be7 {[%emt 0:02:30]} 8. Be2 {[%emt 0:02:30]} a6 {[%emt 0:04:30]} 9. O-O {[%emt 0:03:30]} O-O {[%emt 0:08:30]} 10. Be3 {[%emt 0:01:30]} Be6 {[%emt 0:01:30]} 11. Qd2 {[%emt 0:01:30]} Ng4 {[%emt 0:08:30]} 12. Bxg4 {[%emt 0:02:30]} Bxg4 {[%emt 0:00:00]} 13. Nd5 {[%emt 0:02:30]} Be6 {[%emt 0:05:00]} 14. Rfd1 {[%emt 0:02:30]} Bxd5 {[%emt 0:04:30]} 15. Qxd5 {[%emt 0:02:30]} Qc7 {[%emt 0:08:30]} 16. b3 {[%emt 0:05:30]} Kh8 {[%emt 0:04:30]} 17. a4 {[%emt 0:01:30]} Na5 {[%emt 0:07:30]} 18. Qd3 {[%emt 0:01:30]} Nc6 {[%emt 0:01:30]} 19. Bc1 {[%emt 0:10:30]} Rad8 {[%emt 0:03:30]} 20. Ne3 {[%emt 0:01:30]} Nb4 {[%emt 0:05:30]} 21. Qc3 {[%emt 0:03:30]} a5 {[%emt 0:01:30]} 22. Nd5 {[%emt 0:07:30]} Nxd5 {[%emt 0:03:13]} 23. Rxd5 {[%emt 0:00:00]} b6 {[%emt 0:01:12]} 24. Ba3 {[%emt 0:01:00]} f5 {[%emt 0:00:56]} 25. exf5 {[%emt 0:01:30]} Rxf5 {[%emt 0:00:17]} 26. Rad1 {[%emt 0:00:30]} Rf6 {[%emt 0:01:22]} 27. Bc1 {[%emt 0:02:30]} Rdf8 {[%emt 0:01:53]} 28. Be3 {[%emt 0:01:30]} Rg6 {[%emt 0:02:13]} 29. Qd3 {[%emt 0:01:30]} Qc6 {[%emt 0:01:51]} 30. Qe4 {[%emt 0:04:30]} Qc7 {[%emt 0:09:16]} 31. Rb5 {[%emt 0:02:30]} Rb8 {[%emt 0:00:44]} 32. Qd5 {[%emt 0:02:30]} h6 {[%emt 0:01:17]} 33. b4 {[%emt 0:04:30]} axb4 {[%emt 0:01:06]} 34. Rxb4 {[%emt 0:02:30]} Bg5 {[%emt 0:01:28]} 35. Bxg5 {[%emt 0:01:30]} Rxg5 {[%emt 0:00:33]} 36. Qxd6 {[%emt 0:00:30]} Qxd6 {[%emt 0:00:25]} 37. Rxd6 {[%emt 0:00:00]} Rg4 {[%emt 0:00:38]} 38. f3 {[%emt 0:01:00]} Rf4 {[%emt 0:00:29]} 39. a5 {[%emt 0:00:30]} b5 {[%emt 0:00:32]} 40. Rxb5 {[%emt 0:00:30]} Rc8 {[%emt 0:00:28]} 41. a6 {[%emt 0:04:30]} Rfxc4 {[%emt 0:02:07]} 42. a7 {[%emt 0:02:30]} Ra8 {[%emt 0:00:30]} 43. Rb8+ {[%emt 0:00:00]} Rc8 {[%emt 0:00:30]} 44. Rxc8+ {[%emt 0:00:00]} Rxc8 {[%emt 0:00:30]} 45. Rb6 {[%emt 0:00:30]} Rc1+ {[%emt 0:00:30]} 46. Kf2 {[%emt 0:00:00]} Ra1 {[%emt 0:00:30]} 47. Rb8+ {[%emt 0:00:00]} Kh7 {[%emt 0:00:00]} 48. a8=Q {[%emt 0:00:00]} Rxa8 {[%emt 0:00:00]} 49. Rxa8 {[%emt 0:00:00]} Kg6 {[%emt 0:00:30]} 50. Ke3 {[%emt 0:00:30]} Kf5 {[%emt 0:00:30]} 51. h4 {[%emt 0:00:00]} Kg6 {[%emt 0:00:00]} 52. Ke4 {[%emt 0:00:00]} Kh5 {[%emt 0:00:00]} 53. g3 {[%emt 0:00:00]} g6 {[%emt 0:00:30]} 54. Kxe5 {[%emt 0:00:00]} g5 {[%emt 0:00:00]} 55. Kf5 {[%emt 0:00:30]} gxh4 {[%emt 0:00:00]} 56. g4# {[%emt 0:00:00]} 1-0